[Event "Titled Tuesday Blitz June 27 Late 2023"]
[White "Gokerkan, Cem Kaan"]
[Black "Xiong, Jeffery"]
[WhiteFideId "6336760"]
[BlackFideId "2047640"]
[WhiteElo "2719"]
[BlackElo "2922"]
[Result "0-1"]
[Round "9"]
[TimeControl "180+2"]
[Date "2023.06.27"]
[WhiteClock "0:00:10"]
[BlackClock "0:01:12"]
[Board "13"]

1. e4 {[%clk 0:03:00]}  e6 {[%clk 0:03:00]} 2. d4 {[%clk 0:03:00]}  d5 {[%clk 0:03:01]} 3. Nd2 {[%clk 0:03:00]}  c5 {[%clk 0:03:00]} 4. Ngf3 {[%clk 0:03:00]}  Nf6 {[%clk 0:03:00]} 5. exd5 {[%clk 0:02:55]}  Nxd5 {[%clk 0:03:00]} 6. dxc5 {[%clk 0:02:36]}  Bxc5 {[%clk 0:03:00]} 7. Ne4 {[%clk 0:02:36]}  Be7 {[%clk 0:03:00]} 8. Bd3 {[%clk 0:02:28]}  O-O {[%clk 0:02:59]} 9. O-O {[%clk 0:02:28]}  Nd7 {[%clk 0:02:59]} 10. Re1 {[%clk 0:02:27]}  b6 {[%clk 0:02:59]} 11. Qe2 {[%clk 0:02:15]}  Bb7 {[%clk 0:02:59]} 12. Neg5 {[%clk 0:02:12]}  N5f6 {[%clk 0:02:54]} 13. Nxe6 {[%clk 0:01:47]}  Bxf3 {[%clk 0:02:10]} 14. Nxd8 {[%clk 0:01:47]}  Bxe2 {[%clk 0:02:09]} 15. Nc6 {[%clk 0:01:48]}  Bxd3 {[%clk 0:02:03]} 16. Nxe7+ {[%clk 0:01:48]}  Kh8 {[%clk 0:02:04]} 17. cxd3 {[%clk 0:01:49]}  Rad8 {[%clk 0:01:57]} 18. Bg5 {[%clk 0:01:32]}  h6 {[%clk 0:01:57]} 19. Bh4 {[%clk 0:01:27]}  Nc5 {[%clk 0:01:52]} 20. Bxf6 {[%clk 0:01:13]}  gxf6 {[%clk 0:01:53]} 21. Nc6 {[%clk 0:01:06]}  Rd7 {[%clk 0:01:53]} 22. d4 {[%clk 0:01:05]}  Nd3 {[%clk 0:01:44]} 23. Re3 {[%clk 0:00:52]}  Nxb2 {[%clk 0:01:44]} 24. Rb1 {[%clk 0:00:47]}  Nc4 {[%clk 0:01:42]} 25. Rh3 {[%clk 0:00:46]}  Kg7 {[%clk 0:01:41]} 26. Rg3+ {[%clk 0:00:41]}  Kh7 {[%clk 0:01:41]} 27. Rc1 {[%clk 0:00:29]}  b5 {[%clk 0:01:40]} 28. Rf3 {[%clk 0:00:29]}  Kg6 {[%clk 0:01:39]} 29. Rg3+ {[%clk 0:00:29]}  Kh7 {[%clk 0:01:40]} 30. Rf3 {[%clk 0:00:30]}  Rc8 {[%clk 0:01:30]} 31. Rxf6 {[%clk 0:00:30]}  Kg7 {[%clk 0:01:30]} 32. Ne5 {[%clk 0:00:24]}  Nxe5 {[%clk 0:01:29]} 33. Rxc8 {[%clk 0:00:23]}  Rxd4 {[%clk 0:01:30]} 34. f4 {[%clk 0:00:21]}  Ng4 {[%clk 0:01:27]} 35. Rxf7+ {[%clk 0:00:12]}  Kxf7 {[%clk 0:01:28]} 36. Kf1 {[%clk 0:00:13]}  Rxf4+ {[%clk 0:01:25]} 37. Ke2 {[%clk 0:00:14]}  Rf2+ {[%clk 0:01:25]} 38. Kd3 {[%clk 0:00:14]}  Rxa2 {[%clk 0:01:25]} 39. Ke4 {[%clk 0:00:13]}  Nxh2 {[%clk 0:01:24]} 40. g3 {[%clk 0:00:12]}  b4 {[%clk 0:01:19]} 41. Rb8 {[%clk 0:00:11]}  a5 {[%clk 0:01:19]} 42. Rb5 {[%clk 0:00:11]}  Ng4 {[%clk 0:01:13]} 43. Kf5 {[%clk 0:00:11]}  Ne3+ {[%clk 0:01:14]} 44. Ke4 {[%clk 0:00:11]}  Nc4 {[%clk 0:01:14]} 45. Kd5 {[%clk 0:00:10]}  Rc2 {[%clk 0:01:12]} 0-1


[Site "https://www.chess.com"]

[Event "Titled Tuesday Blitz June 27 Late 2023"]
[White "Boyer, Mahel"]
[Black "Zhigalko, Sergei"]
[WhiteFideId "45102422"]
[BlackFideId "13502956"]
[WhiteElo "2710"]
[BlackElo "2892"]
[Result "0-1"]
[Round "9"]
[TimeControl "180+2"]
[Date "2023.06.27"]
[WhiteClock "0:00:30"]
[BlackClock "0:00:13"]
[Board "16"]

1. d4 {[%clk 0:03:00]}  Nf6 {[%clk 0:03:00]} 2. c4 {[%clk 0:03:00]}  e6 {[%clk 0:03:00]} 3. Nf3 {[%clk 0:03:01]}  b6 {[%clk 0:03:00]} 4. g3 {[%clk 0:03:02]}  Ba6 {[%clk 0:03:01]} 5. Qc2 {[%clk 0:03:02]}  Bb4+ {[%clk 0:02:59]} 6. Nbd2 {[%clk 0:03:01]}  Bb7 {[%clk 0:02:58]} 7. Bg2 {[%clk 0:03:01]}  Be4 {[%clk 0:02:59]} 8. Qb3 {[%clk 0:03:01]}  Bxd2+ {[%clk 0:03:00]} 9. Bxd2 {[%clk 0:03:01]}  O-O {[%clk 0:03:00]} 10. O-O {[%clk 0:03:01]}  d6 {[%clk 0:03:01]} 11. Bh3 {[%clk 0:02:59]}  Nbd7 {[%clk 0:02:57]} 12. Ne1 {[%clk 0:02:58]}  c5 {[%clk 0:02:55]} 13. f3 {[%clk 0:02:58]}  Bg6 {[%clk 0:02:54]} 14. Bc3 {[%clk 0:02:57]}  cxd4 {[%clk 0:02:47]} 15. Bxd4 {[%clk 0:02:58]}  e5 {[%clk 0:02:47]} 16. Bf2 {[%clk 0:02:58]}  Nc5 {[%clk 0:02:48]} 17. Qa3 {[%clk 0:02:56]}  a5 {[%clk 0:02:21]} 18. e4 {[%clk 0:02:55]}  Ne8 {[%clk 0:02:11]} 19. Rd1 {[%clk 0:02:52]}  f5 {[%clk 0:02:05]} 20. exf5 {[%clk 0:02:37]}  Bxf5 {[%clk 0:02:06]} 21. Bg2 {[%clk 0:02:38]}  Rc8 {[%clk 0:01:57]} 22. Rd2 {[%clk 0:02:30]}  Qc7 {[%clk 0:01:54]} 23. Nc2 {[%clk 0:02:29]}  Bxc2 {[%clk 0:01:38]} 24. Rxc2 {[%clk 0:02:30]}  Nf6 {[%clk 0:01:38]} 25. Rd1 {[%clk 0:02:29]}  e4 {[%clk 0:01:06]} 26. f4 {[%clk 0:02:29]}  Nd3 {[%clk 0:00:55]} 27. Bd4 {[%clk 0:02:22]}  d5 {[%clk 0:00:53]} 28. b3 {[%clk 0:02:09]}  Rfd8 {[%clk 0:00:45]} 29. Qa4 {[%clk 0:02:01]}  Qd6 {[%clk 0:00:33]} 30. Ba1 {[%clk 0:01:25]}  Qc5+ {[%clk 0:00:31]} 31. Kh1 {[%clk 0:01:19]}  Ng4 {[%clk 0:00:19]} 32. Qb5 {[%clk 0:00:39]}  Ndf2+ {[%clk 0:00:18]} 33. Kg1 {[%clk 0:00:36]}  Nh3+ {[%clk 0:00:14]} 34. Kf1 {[%clk 0:00:30]}  Qg1+ {[%clk 0:00:12]} 35. Ke2 {[%clk 0:00:31]}  Qe3+ {[%clk 0:00:12]} 36. Kf1 {[%clk 0:00:30]}  Nxh2# {[%clk 0:00:13]} 0-1


[Site "https://www.chess.com"]

[Event "Titled Tuesday Blitz June 27 Late 2023"]
[White "Sanal, Vahap"]
[Black "Makridis, Dimitrios"]
[WhiteFideId "6300545"]
[BlackFideId "25864475"]
[WhiteElo "2966"]
[BlackElo "2743"]
[Result "1-0"]
[Round "9"]
[TimeControl "180+2"]
[Date "2023.06.27"]
[WhiteClock "0:01:10"]
[BlackClock "0:00:02"]
[Board "20"]

1. e4 {[%clk 0:02:53]}  c5 {[%clk 0:02:59]} 2. Nc3 {[%clk 0:02:52]}  Nc6 {[%clk 0:02:59]} 3. Bb5 {[%clk 0:02:52]}  Nd4 {[%clk 0:02:42]} 4. a4 {[%clk 0:02:51]}  a6 {[%clk 0:02:10]} 5. Bc4 {[%clk 0:02:51]}  e6 {[%clk 0:02:08]} 6. Nf3 {[%clk 0:02:51]}  Nf6 {[%clk 0:02:07]} 7. O-O {[%clk 0:02:48]}  d6 {[%clk 0:01:57]} 8. d3 {[%clk 0:02:45]}  Be7 {[%clk 0:01:57]} 9. Nxd4 {[%clk 0:02:46]}  cxd4 {[%clk 0:01:56]} 10. Ne2 {[%clk 0:02:47]}  e5 {[%clk 0:01:52]} 11. f4 {[%clk 0:02:45]}  O-O {[%clk 0:01:49]} 12. fxe5 {[%clk 0:02:45]}  dxe5 {[%clk 0:01:49]} 13. Ng3 {[%clk 0:02:45]}  Ne8 {[%clk 0:01:42]} 14. Nf5 {[%clk 0:02:34]}  Bxf5 {[%clk 0:01:41]} 15. exf5 {[%clk 0:02:32]}  Bg5 {[%clk 0:01:38]} 16. Bxg5 {[%clk 0:02:30]}  Qxg5 {[%clk 0:01:39]} 17. Qf3 {[%clk 0:02:31]}  Nd6 {[%clk 0:01:08]} 18. Bb3 {[%clk 0:02:31]}  Qf6 {[%clk 0:01:05]} 19. Rae1 {[%clk 0:02:31]}  Rfe8 {[%clk 0:01:05]} 20. Re2 {[%clk 0:02:23]}  Re7 {[%clk 0:01:03]} 21. Rfe1 {[%clk 0:02:16]}  Rae8 {[%clk 0:01:02]} 22. g4 {[%clk 0:02:09]}  h6 {[%clk 0:01:01]} 23. Bd5 {[%clk 0:02:07]}  b5 {[%clk 0:00:56]} 24. axb5 {[%clk 0:02:07]}  axb5 {[%clk 0:00:57]} 25. Qg3 {[%clk 0:02:07]}  Kf8 {[%clk 0:00:40]} 26. h4 {[%clk 0:02:07]}  h5 {[%clk 0:00:36]} 27. gxh5 {[%clk 0:01:48]}  Nxf5 {[%clk 0:00:35]} 28. Qh3 {[%clk 0:01:42]}  Nxh4 {[%clk 0:00:19]} 29. Rf1 {[%clk 0:01:42]}  Qg5+ {[%clk 0:00:19]} 30. Kh1 {[%clk 0:01:43]}  Qxh5 {[%clk 0:00:19]} 31. Ref2 {[%clk 0:01:38]}  f6 {[%clk 0:00:05]} 32. Rg1 {[%clk 0:01:35]}  Qh6 {[%clk 0:00:02]} 33. Rg4 {[%clk 0:01:32]}  g5 {[%clk 0:00:02]} 34. Rh2 {[%clk 0:01:19]}  Rh7 {[%clk 0:00:02]} 35. Qf1 {[%clk 0:01:18]}  Qg6 {[%clk 0:00:02]} 36. Be4 {[%clk 0:01:16]}  Qg7 {[%clk 0:00:02]} 37. Bxh7 {[%clk 0:01:15]}  Qxh7 {[%clk 0:00:03]} 38. Qxf6+ {[%clk 0:01:16]}  Qf7 {[%clk 0:00:03]} 39. Qh8+ {[%clk 0:01:13]}  Ke7 {[%clk 0:00:04]} 40. Qxe5+ {[%clk 0:01:14]}  Kd7 {[%clk 0:00:04]} 41. Qxb5+ {[%clk 0:01:14]}  Kc7 {[%clk 0:00:03]} 42. Qc5+ {[%clk 0:01:12]}  Kb7 {[%clk 0:00:04]} 43. Qb4+ {[%clk 0:01:13]}  Kc7 {[%clk 0:00:04]} 44. Qc4+ {[%clk 0:01:05]}  Qxc4 {[%clk 0:00:04]} 45. dxc4 {[%clk 0:01:06]}  Re1+ {[%clk 0:00:03]} 46. Rg1 {[%clk 0:01:07]}  Rxg1+ {[%clk 0:00:03]} 47. Kxg1 {[%clk 0:01:08]}  Nf3+ {[%clk 0:00:03]} 48. Kg2 {[%clk 0:01:08]}  Nxh2 {[%clk 0:00:04]} 49. Kxh2 {[%clk 0:01:09]}  Kd6 {[%clk 0:00:04]} 50. b4 {[%clk 0:01:08]}  Ke5 {[%clk 0:00:02]} 51. b5 {[%clk 0:01:08]}  Kd6 {[%clk 0:00:02]} 52. b6 {[%clk 0:01:09]}  Kc6 {[%clk 0:00:02]} 53. c5 {[%clk 0:01:09]}  Kxc5 {[%clk 0:00:02]} 54. b7 {[%clk 0:01:09]}  Kc4 {[%clk 0:00:03]} 55. b8=Q {[%clk 0:01:10]}  Kc3 {[%clk 0:00:02]} 56. Qb3+ {[%clk 0:01:10]} 1-0


[Site "https://www.chess.com"]

[Event "Titled Tuesday Blitz June 27 Late 2023"]
[White "Bazeev, German"]
[Black "Alex_Sahakyan2006"]
[WhiteFideId "24119350"]
[WhiteElo "2807"]
[BlackElo "2687"]
[Result "1-0"]
[Round "9"]
[TimeControl "180+2"]
[Date "2023.06.27"]
[WhiteClock "0:00:09"]
[BlackClock "0:00:00"]
[Board "23"]

1. d4 {[%clk 0:02:59]}  Nf6 {[%clk 0:02:59]} 2. Nf3 {[%clk 0:02:59]}  d5 {[%clk 0:02:58]} 3. c4 {[%clk 0:02:59]}  e6 {[%clk 0:02:58]} 4. g3 {[%clk 0:02:59]}  h6 {[%clk 0:02:59]} 5. Qc2 {[%clk 0:02:58]}  dxc4 {[%clk 0:02:38]} 6. Qxc4 {[%clk 0:02:56]}  a6 {[%clk 0:02:38]} 7. Bg2 {[%clk 0:02:56]}  b5 {[%clk 0:02:37]} 8. Qc2 {[%clk 0:02:55]}  Bb7 {[%clk 0:02:37]} 9. O-O {[%clk 0:02:55]}  Nbd7 {[%clk 0:02:38]} 10. a4 {[%clk 0:02:55]}  Be7 {[%clk 0:02:22]} 11. Rd1 {[%clk 0:02:51]}  O-O {[%clk 0:02:22]} 12. Bf4 {[%clk 0:02:48]}  Nd5 {[%clk 0:02:16]} 13. Nbd2 {[%clk 0:02:00]}  Nxf4 {[%clk 0:02:14]} 14. gxf4 {[%clk 0:02:01]}  Qb8 {[%clk 0:02:05]} 15. Ne4 {[%clk 0:01:21]}  bxa4 {[%clk 0:01:43]} 16. Rxa4 {[%clk 0:00:54]}  Bd5 {[%clk 0:01:32]} 17. Ned2 {[%clk 0:00:42]}  c5 {[%clk 0:01:29]} 18. f5 {[%clk 0:00:39]}  exf5 {[%clk 0:01:20]} 19. Qxf5 {[%clk 0:00:35]}  Nb6 {[%clk 0:01:19]} 20. Ra5 {[%clk 0:00:31]}  g6 {[%clk 0:00:56]} 21. Qh3 {[%clk 0:00:29]}  cxd4 {[%clk 0:00:35]} 22. Qxh6 {[%clk 0:00:27]}  Rd8 {[%clk 0:00:34]} 23. h4 {[%clk 0:00:17]}  Bf8 {[%clk 0:00:27]} 24. Qg5 {[%clk 0:00:17]}  Qc7 {[%clk 0:00:17]} 25. h5 {[%clk 0:00:16]}  Be7 {[%clk 0:00:17]} 26. Qg4 {[%clk 0:00:17]}  Be6 {[%clk 0:00:15]} 27. Qe4 {[%clk 0:00:13]}  Nd5 {[%clk 0:00:14]} 28. hxg6 {[%clk 0:00:12]}  Qxa5 {[%clk 0:00:14]} 29. gxf7+ {[%clk 0:00:11]}  Bxf7 {[%clk 0:00:15]} 30. Ne5 {[%clk 0:00:10]}  Nf6 {[%clk 0:00:14]} 31. Qf4 {[%clk 0:00:09]}  Rac8 {[%clk 0:00:09]} 32. Ne4 {[%clk 0:00:09]}  Qb6 {[%clk 0:00:07]} 33. Ng5 {[%clk 0:00:08]}  Bb3 {[%clk 0:00:06]} 34. Qf5 {[%clk 0:00:08]}  Bc2 {[%clk 0:00:05]} 35. Rd3 {[%clk 0:00:08]}  Bxd3 {[%clk 0:00:04]} 36. exd3 {[%clk 0:00:09]}  Rc1+ {[%clk 0:00:03]} 37. Bf1 {[%clk 0:00:10]}  Ng4 {[%clk 0:00:00]} 38. Qf7+ {[%clk 0:00:09]} 1-0


[Site "https://www.chess.com"]

[Event "Titled Tuesday Blitz June 27 Late 2023"]
[White "HamedWafa4"]
[Black "Hansen, Eric"]
[BlackFideId "2606771"]
[WhiteElo "2623"]
[BlackElo "2868"]
[Result "0-1"]
[Round "9"]
[TimeControl "180+2"]
[Date "2023.06.27"]
[WhiteClock "0:00:02"]
[BlackClock "0:01:16"]
[Board "28"]

1. e4 {[%clk 0:02:56]}  c6 {[%clk 0:02:56]} 2. d4 {[%clk 0:02:55]}  d5 {[%clk 0:02:57]} 3. e5 {[%clk 0:02:52]}  Bf5 {[%clk 0:02:57]} 4. h4 {[%clk 0:02:50]}  h6 {[%clk 0:02:57]} 5. g4 {[%clk 0:02:44]}  Bd7 {[%clk 0:02:58]} 6. Nc3 {[%clk 0:02:43]}  e6 {[%clk 0:02:58]} 7. Be3 {[%clk 0:02:41]}  Qc7 {[%clk 0:02:46]} 8. h5 {[%clk 0:02:29]}  c5 {[%clk 0:02:45]} 9. Nb5 {[%clk 0:02:11]}  Bxb5 {[%clk 0:02:45]} 10. Bxb5+ {[%clk 0:02:12]}  Nc6 {[%clk 0:02:46]} 11. c3 {[%clk 0:02:01]}  a6 {[%clk 0:02:43]} 12. Be2 {[%clk 0:01:57]}  Qb6 {[%clk 0:02:41]} 13. b3 {[%clk 0:01:52]}  cxd4 {[%clk 0:02:41]} 14. cxd4 {[%clk 0:01:52]}  Ba3 {[%clk 0:02:27]} 15. Rb1 {[%clk 0:01:49]}  Nge7 {[%clk 0:02:20]} 16. Nf3 {[%clk 0:01:48]}  Qa5+ {[%clk 0:02:20]} 17. Kf1 {[%clk 0:01:46]}  Rc8 {[%clk 0:02:19]} 18. Kg2 {[%clk 0:01:45]}  Nb4 {[%clk 0:02:18]} 19. Bd2 {[%clk 0:01:27]}  Qb6 {[%clk 0:02:13]} 20. Bc1 {[%clk 0:00:58]}  Bxc1 {[%clk 0:02:07]} 21. Rxc1 {[%clk 0:00:58]}  O-O {[%clk 0:02:08]} 22. a3 {[%clk 0:00:54]}  Na2 {[%clk 0:02:07]} 23. Rxc8 {[%clk 0:00:53]}  Rxc8 {[%clk 0:02:07]} 24. b4 {[%clk 0:00:46]}  Nc3 {[%clk 0:01:53]} 25. Qd2 {[%clk 0:00:45]}  Ne4 {[%clk 0:01:53]} 26. Qe3 {[%clk 0:00:43]}  Rc3 {[%clk 0:01:53]} 27. Bd3 {[%clk 0:00:40]}  Rxa3 {[%clk 0:01:53]} 28. Rc1 {[%clk 0:00:28]}  Qxb4 {[%clk 0:01:53]} 29. Qe2 {[%clk 0:00:27]}  Rc3 {[%clk 0:01:39]} 30. Rb1 {[%clk 0:00:19]}  Rb3 {[%clk 0:01:39]} 31. Rc1 {[%clk 0:00:19]}  Qa3 {[%clk 0:01:21]} 32. Rc7 {[%clk 0:00:07]}  Rxd3 {[%clk 0:01:21]} 33. Rxe7 {[%clk 0:00:07]}  Qxe7 {[%clk 0:01:16]} 34. Qxd3 {[%clk 0:00:06]}  Qb4 {[%clk 0:01:16]} 35. Qc2 {[%clk 0:00:05]}  Qc3 {[%clk 0:01:16]} 36. Qb1 {[%clk 0:00:02]}  Qxf3+ {[%clk 0:01:16]} 0-1


[Site "https://www.chess.com"]

[Event "Titled Tuesday Blitz June 27 Late 2023"]
[White "Mekhitarian, Krikor Sevag"]
[Black "Grinev, Valeriy"]
[WhiteFideId "2107660"]
[BlackFideId "14117517"]
[WhiteElo "2856"]
[BlackElo "2616"]
[Result "1/2-1/2"]
[Round "9"]
[TimeControl "180+2"]
[Date "2023.06.27"]
[WhiteClock "0:00:14"]
[BlackClock "0:01:26"]
[Board "29"]

1. Nf3 {[%clk 0:03:00]}  c5 {[%clk 0:03:00]} 2. c4 {[%clk 0:03:00]}  Nc6 {[%clk 0:03:00]} 3. Nc3 {[%clk 0:03:01]}  g6 {[%clk 0:03:01]} 4. d4 {[%clk 0:02:54]}  cxd4 {[%clk 0:03:02]} 5. Nxd4 {[%clk 0:02:55]}  Bg7 {[%clk 0:03:01]} 6. e3 {[%clk 0:02:55]}  Nf6 {[%clk 0:03:00]} 7. Be2 {[%clk 0:02:54]}  O-O {[%clk 0:03:00]} 8. Nc2 {[%clk 0:02:55]}  d6 {[%clk 0:02:59]} 9. e4 {[%clk 0:02:55]}  Bd7 {[%clk 0:02:59]} 10. O-O {[%clk 0:02:55]}  Rc8 {[%clk 0:02:57]} 11. Be3 {[%clk 0:02:55]}  a6 {[%clk 0:02:56]} 12. h3 {[%clk 0:02:52]}  Ne5 {[%clk 0:02:52]} 13. Na3 {[%clk 0:02:52]}  Qa5 {[%clk 0:02:50]} 14. c5 {[%clk 0:02:52]}  Rxc5 {[%clk 0:02:34]} 15. Bxc5 {[%clk 0:02:50]}  Qxc5 {[%clk 0:02:33]} 16. Rc1 {[%clk 0:02:49]}  Qa7 {[%clk 0:02:33]} 17. Kh1 {[%clk 0:02:48]}  b5 {[%clk 0:02:32]} 18. f4 {[%clk 0:02:48]}  Nc6 {[%clk 0:02:32]} 19. e5 {[%clk 0:01:57]}  dxe5 {[%clk 0:02:31]} 20. fxe5 {[%clk 0:01:58]}  Nxe5 {[%clk 0:02:31]} 21. Nc2 {[%clk 0:01:55]}  Bc6 {[%clk 0:02:28]} 22. Nd4 {[%clk 0:01:48]}  Ba8 {[%clk 0:02:26]} 23. Nf3 {[%clk 0:01:48]}  Nc4 {[%clk 0:02:22]} 24. Bxc4 {[%clk 0:01:46]}  bxc4 {[%clk 0:02:23]} 25. Qd4 {[%clk 0:01:43]}  Qb8 {[%clk 0:02:21]} 26. Qe5 {[%clk 0:01:38]}  Qxb2 {[%clk 0:02:19]} 27. Qxe7 {[%clk 0:01:30]}  Nh5 {[%clk 0:02:18]} 28. Qe1 {[%clk 0:00:34]}  Bxc3 {[%clk 0:02:04]} 29. Rxc3 {[%clk 0:00:32]}  Ng3+ {[%clk 0:02:03]} 30. Qxg3 {[%clk 0:00:32]}  Qxc3 {[%clk 0:02:02]} 31. Kh2 {[%clk 0:00:31]}  Bxf3 {[%clk 0:02:00]} 32. Rxf3 {[%clk 0:00:31]}  Qb2 {[%clk 0:02:01]} 33. a3 {[%clk 0:00:27]}  Re8 {[%clk 0:01:54]} 34. Rc3 {[%clk 0:00:27]}  Qb5 {[%clk 0:01:53]} 35. Qf4 {[%clk 0:00:26]}  Qe5 {[%clk 0:01:51]} 36. Qxe5 {[%clk 0:00:26]}  Rxe5 {[%clk 0:01:51]} 37. Rxc4 {[%clk 0:00:26]}  Ra5 {[%clk 0:01:51]} 38. a4 {[%clk 0:00:26]}  Kg7 {[%clk 0:01:51]} 39. h4 {[%clk 0:00:26]}  h5 {[%clk 0:01:52]} 40. g3 {[%clk 0:00:25]}  Re5 {[%clk 0:01:52]} 41. Rc6 {[%clk 0:00:24]}  a5 {[%clk 0:01:51]} 42. Ra6 {[%clk 0:00:23]}  g5 {[%clk 0:01:49]} 43. hxg5 {[%clk 0:00:23]}  Rxg5 {[%clk 0:01:50]} 44. Kh3 {[%clk 0:00:23]}  Rc5 {[%clk 0:01:49]} 45. Kg2 {[%clk 0:00:20]}  f6 {[%clk 0:01:49]} 46. Kh3 {[%clk 0:00:20]}  Kg6 {[%clk 0:01:49]} 47. Kg2 {[%clk 0:00:17]}  Kg5 {[%clk 0:01:50]} 48. Kh3 {[%clk 0:00:17]}  Rd5 {[%clk 0:01:49]} 49. Ra8 {[%clk 0:00:17]}  Kf5 {[%clk 0:01:45]} 50. Kh4 {[%clk 0:00:16]}  Rd4+ {[%clk 0:01:45]} 51. Kxh5 {[%clk 0:00:17]}  Rxa4 {[%clk 0:01:45]} 52. g4+ {[%clk 0:00:16]}  Kf4 {[%clk 0:01:42]} 53. Rf8 {[%clk 0:00:16]}  Ke5 {[%clk 0:01:41]} 54. Re8+ {[%clk 0:00:16]}  Kd6 {[%clk 0:01:41]} 55. Rf8 {[%clk 0:00:17]}  Ke7 {[%clk 0:01:42]} 56. Ra8 {[%clk 0:00:17]}  Ra1 {[%clk 0:01:42]} 57. Kg6 {[%clk 0:00:17]}  a4 {[%clk 0:01:37]} 58. Ra7+ {[%clk 0:00:17]}  Ke6 {[%clk 0:01:35]} 59. Ra6+ {[%clk 0:00:16]}  Ke5 {[%clk 0:01:36]} 60. Rxf6 {[%clk 0:00:17]}  a3 {[%clk 0:01:36]} 61. Ra6 {[%clk 0:00:17]}  a2 {[%clk 0:01:36]} 62. g5 {[%clk 0:00:17]}  Kd5 {[%clk 0:01:35]} 63. Kg7 {[%clk 0:00:16]}  Rg1 {[%clk 0:01:31]} 64. Rxa2 {[%clk 0:00:15]}  Rxg5+ {[%clk 0:01:31]} 65. Kf6 {[%clk 0:00:16]}  Rg3 {[%clk 0:01:32]} 66. Rd2+ {[%clk 0:00:15]}  Ke4 {[%clk 0:01:26]} 67. Re2+ {[%clk 0:00:14]} 1/2-1/2


[Site "https://www.chess.com"]

[Event "Titled Tuesday Blitz June 27 Late 2023"]
[White "Licznerski, Lukasz"]
[Black "Vdovin, Vadim"]
[WhiteFideId "1179250"]
[BlackFideId "24107158"]
[WhiteElo "2847"]
[BlackElo "2612"]
[Result "0-1"]
[Round "9"]
[TimeControl "180+2"]
[Date "2023.06.27"]
[WhiteClock "0:00:00"]
[BlackClock "0:00:08"]
[Board "30"]

1. e4 {[%clk 0:03:00]}  c5 {[%clk 0:02:58]} 2. Nf3 {[%clk 0:03:01]}  d6 {[%clk 0:02:58]} 3. Bb5+ {[%clk 0:03:01]}  Bd7 {[%clk 0:02:56]} 4. Bxd7+ {[%clk 0:03:01]}  Qxd7 {[%clk 0:02:57]} 5. O-O {[%clk 0:03:01]}  Nf6 {[%clk 0:02:57]} 6. Re1 {[%clk 0:03:01]}  Nc6 {[%clk 0:02:56]} 7. c3 {[%clk 0:03:02]}  e6 {[%clk 0:02:57]} 8. d4 {[%clk 0:03:02]}  cxd4 {[%clk 0:02:57]} 9. cxd4 {[%clk 0:03:03]}  d5 {[%clk 0:02:58]} 10. e5 {[%clk 0:03:03]}  Ne4 {[%clk 0:02:59]} 11. Nbd2 {[%clk 0:03:04]}  Nxd2 {[%clk 0:02:59]} 12. Bxd2 {[%clk 0:03:05]}  Bb4 {[%clk 0:02:59]} 13. Bxb4 {[%clk 0:02:36]}  Nxb4 {[%clk 0:02:58]} 14. Qd2 {[%clk 0:02:36]}  Nc6 {[%clk 0:02:56]} 15. h4 {[%clk 0:02:31]}  h6 {[%clk 0:02:56]} 16. h5 {[%clk 0:02:29]}  O-O {[%clk 0:02:56]} 17. Rac1 {[%clk 0:02:26]}  Rac8 {[%clk 0:02:55]} 18. Rc3 {[%clk 0:02:26]}  Ne7 {[%clk 0:02:53]} 19. Rec1 {[%clk 0:02:10]}  Rxc3 {[%clk 0:02:48]} 20. Rxc3 {[%clk 0:02:11]}  Rc8 {[%clk 0:02:47]} 21. Qc2 {[%clk 0:01:57]}  Rxc3 {[%clk 0:02:45]} 22. Qxc3 {[%clk 0:01:58]}  Qa4 {[%clk 0:02:18]} 23. a3 {[%clk 0:01:41]}  Qd1+ {[%clk 0:02:05]} 24. Kh2 {[%clk 0:01:39]}  Nc6 {[%clk 0:02:06]} 25. b4 {[%clk 0:01:21]}  a6 {[%clk 0:02:04]} 26. Kg3 {[%clk 0:01:13]}  Qh1 {[%clk 0:01:39]} 27. Nh2 {[%clk 0:01:11]}  Qb1 {[%clk 0:01:31]} 28. Nf3 {[%clk 0:01:05]}  Qf5 {[%clk 0:01:23]} 29. Qc5 {[%clk 0:00:53]}  Qxh5 {[%clk 0:01:17]} 30. Qb6 {[%clk 0:00:51]}  Qg6+ {[%clk 0:01:00]} 31. Kh2 {[%clk 0:00:49]}  Qe4 {[%clk 0:00:42]} 32. a4 {[%clk 0:00:40]}  Kh7 {[%clk 0:00:29]} 33. b5 {[%clk 0:00:39]}  axb5 {[%clk 0:00:29]} 34. axb5 {[%clk 0:00:40]}  Ne7 {[%clk 0:00:21]} 35. Qxb7 {[%clk 0:00:30]}  Nf5 {[%clk 0:00:21]} 36. Qc7 {[%clk 0:00:23]}  Qf4+ {[%clk 0:00:16]} 37. Kg1 {[%clk 0:00:22]}  Nxd4 {[%clk 0:00:10]} 38. Nxd4 {[%clk 0:00:22]}  Qxd4 {[%clk 0:00:11]} 39. Qxf7 {[%clk 0:00:07]}  Qa1+ {[%clk 0:00:11]} 40. Kh2 {[%clk 0:00:06]}  Qxe5+ {[%clk 0:00:12]} 41. f4 {[%clk 0:00:06]}  Qe1 {[%clk 0:00:08]} 42. Qxe6 {[%clk 0:00:00]}  Qxe6 {[%clk 0:00:08]} 0-1


[Site "https://www.chess.com"]

[Event "Titled Tuesday Blitz June 27 Late 2023"]
[White "Ballester Llagaria, Luis Eduardo"]
[Black "Cruz, Jonathan"]
[WhiteFideId "2297620"]
[BlackFideId "3802124"]
[WhiteElo "2601"]
[BlackElo "2777"]
[Result "1-0"]
[Round "9"]
[TimeControl "180+2"]
[Date "2023.06.27"]
[WhiteClock "0:00:30"]
[BlackClock "0:00:00"]
[Board "32"]

1. e4 {[%clk 0:02:55]}  e5 {[%clk 0:02:54]} 2. Nf3 {[%clk 0:02:55]}  Nc6 {[%clk 0:02:54]} 3. Bc4 {[%clk 0:02:55]}  Be7 {[%clk 0:02:53]} 4. d4 {[%clk 0:02:52]}  exd4 {[%clk 0:02:53]} 5. c3 {[%clk 0:02:52]}  Nf6 {[%clk 0:02:44]} 6. e5 {[%clk 0:02:47]}  Ne4 {[%clk 0:02:43]} 7. Bd5 {[%clk 0:02:35]}  Nc5 {[%clk 0:02:42]} 8. cxd4 {[%clk 0:02:32]}  Ne6 {[%clk 0:02:23]} 9. O-O {[%clk 0:02:31]}  O-O {[%clk 0:02:20]} 10. Bb3 {[%clk 0:02:23]}  Na5 {[%clk 0:02:00]} 11. Bc2 {[%clk 0:02:06]}  d5 {[%clk 0:01:56]} 12. Qd3 {[%clk 0:02:04]}  g6 {[%clk 0:01:54]} 13. Bh6 {[%clk 0:02:04]}  Re8 {[%clk 0:01:38]} 14. Nc3 {[%clk 0:02:04]}  Nc4 {[%clk 0:01:34]} 15. b3 {[%clk 0:01:58]}  Na3 {[%clk 0:01:34]} 16. Bd1 {[%clk 0:01:50]}  b6 {[%clk 0:01:14]} 17. Rc1 {[%clk 0:01:36]}  Bb7 {[%clk 0:01:10]} 18. Ne2 {[%clk 0:01:33]}  c5 {[%clk 0:01:07]} 19. Nf4 {[%clk 0:01:32]}  c4 {[%clk 0:00:52]} 20. Qe3 {[%clk 0:01:27]}  b5 {[%clk 0:00:30]} 21. g3 {[%clk 0:01:16]}  Rc8 {[%clk 0:00:26]} 22. h4 {[%clk 0:01:12]}  Ng7 {[%clk 0:00:20]} 23. Bxg7 {[%clk 0:01:12]}  Kxg7 {[%clk 0:00:21]} 24. e6 {[%clk 0:01:02]}  f6 {[%clk 0:00:18]} 25. h5 {[%clk 0:01:00]}  Bd6 {[%clk 0:00:15]} 26. Nh4 {[%clk 0:00:50]}  Bxf4 {[%clk 0:00:13]} 27. Qxf4 {[%clk 0:00:51]}  g5 {[%clk 0:00:06]} 28. Nf5+ {[%clk 0:00:48]}  Kh8 {[%clk 0:00:06]} 29. Qd6 {[%clk 0:00:45]}  Qb6 {[%clk 0:00:02]} 30. Qd7 {[%clk 0:00:35]}  Qc7 {[%clk 0:00:00]} 31. Nd6 {[%clk 0:00:30]} 1-0


[Site "https://www.chess.com"]